[Event "Titled Tuesday Blitz August 15 Late 2023"]
[White "Bluebaum, Matthias"]
[Black "Krishnan, Varun"]
[WhiteFideId "24651516"]
[BlackFideId "5054508"]
[WhiteElo "3030"]
[BlackElo "2595"]
[Result "1-0"]
[Round "2"]
[TimeControl "180+1"]
[Date "2023.08.15"]
[WhiteClock "0:02:01"]
[BlackClock "0:00:18"]
[Board "12"]

1. d4 {[%clk 0:03:00]}  d5 {[%clk 0:02:59]} 2. c4 {[%clk 0:03:01]}  e6 {[%clk 0:02:59]} 3. Nc3 {[%clk 0:03:01]}  Be7 {[%clk 0:02:57]} 4. cxd5 {[%clk 0:03:01]}  exd5 {[%clk 0:02:58]} 5. Bf4 {[%clk 0:03:02]}  Nf6 {[%clk 0:02:58]} 6. e3 {[%clk 0:03:01]}  Bf5 {[%clk 0:02:54]} 7. f3 {[%clk 0:02:57]}  O-O {[%clk 0:02:53]} 8. g4 {[%clk 0:02:58]}  Bg6 {[%clk 0:02:53]} 9. h4 {[%clk 0:02:58]}  h5 {[%clk 0:02:52]} 10. g5 {[%clk 0:02:59]}  Ne8 {[%clk 0:02:47]} 11. Bd3 {[%clk 0:02:59]}  Bxd3 {[%clk 0:02:44]} 12. Qxd3 {[%clk 0:03:00]}  g6 {[%clk 0:02:39]} 13. Nge2 {[%clk 0:03:00]}  c6 {[%clk 0:02:38]} 14. O-O-O {[%clk 0:02:58]}  b5 {[%clk 0:02:29]} 15. e4 {[%clk 0:02:53]}  b4 {[%clk 0:02:29]} 16. Na4 {[%clk 0:02:54]}  Nd7 {[%clk 0:02:19]} 17. Kb1 {[%clk 0:02:54]}  Nd6 {[%clk 0:02:12]} 18. Ng3 {[%clk 0:02:47]}  Nb5 {[%clk 0:01:58]} 19. exd5 {[%clk 0:02:38]}  Qa5 {[%clk 0:01:57]} 20. dxc6 {[%clk 0:02:33]}  Nb6 {[%clk 0:01:32]} 21. Nc5 {[%clk 0:02:33]}  Nd5 {[%clk 0:01:19]} 22. Bd2 {[%clk 0:02:31]}  Bxc5 {[%clk 0:00:49]} 23. dxc5 {[%clk 0:02:31]}  Rfd8 {[%clk 0:00:49]} 24. Qc4 {[%clk 0:02:11]}  Rab8 {[%clk 0:00:29]} 25. Ka1 {[%clk 0:02:09]}  Qc7 {[%clk 0:00:21]} 26. Ne4 {[%clk 0:02:04]}  Qxc6 {[%clk 0:00:21]} 27. Bc1 {[%clk 0:02:01]}  a5 {[%clk 0:00:20]} 28. Rxd5 {[%clk 0:02:01]}  Rxd5 {[%clk 0:00:18]} 29. Qxd5 {[%clk 0:02:02]}  Kg7 {[%clk 0:00:18]} 30. Qxc6 {[%clk 0:02:01]} 1-0


[Site "https://www.chess.com"]

[Event "Titled Tuesday Blitz August 15 Late 2023"]
[White "Martinez Alcantara, Jose Eduardo"]
[Black "Manukyan, Sargis A."]
[WhiteFideId "3805662"]
[BlackFideId "13303970"]
[WhiteElo "3018"]
[BlackElo "2587"]
[Result "1-0"]
[Round "2"]
[TimeControl "180+1"]
[Date "2023.08.15"]
[WhiteClock "0:01:51"]
[BlackClock "0:01:18"]
[Board "14"]

1. e4 {[%clk 0:03:00]}  c5 {[%clk 0:02:59]} 2. Nf3 {[%clk 0:02:59]}  d6 {[%clk 0:03:00]} 3. c3 {[%clk 0:02:59]}  Nf6 {[%clk 0:02:59]} 4. h3 {[%clk 0:03:00]}  e6 {[%clk 0:02:57]} 5. Bd3 {[%clk 0:03:00]}  Nc6 {[%clk 0:02:57]} 6. Bc2 {[%clk 0:03:00]}  Be7 {[%clk 0:02:57]} 7. d4 {[%clk 0:03:00]}  cxd4 {[%clk 0:02:57]} 8. cxd4 {[%clk 0:03:01]}  O-O {[%clk 0:02:51]} 9. Nc3 {[%clk 0:03:01]}  e5 {[%clk 0:02:49]} 10. d5 {[%clk 0:03:01]}  Nb8 {[%clk 0:02:49]} 11. O-O {[%clk 0:03:01]}  a6 {[%clk 0:02:49]} 12. Be3 {[%clk 0:03:01]}  Nbd7 {[%clk 0:02:47]} 13. a4 {[%clk 0:02:58]}  b6 {[%clk 0:02:47]} 14. Nd2 {[%clk 0:02:55]}  Bb7 {[%clk 0:02:47]} 15. Re1 {[%clk 0:02:53]}  Rc8 {[%clk 0:02:47]} 16. Bd3 {[%clk 0:02:52]}  Nc5 {[%clk 0:02:46]} 17. Bf1 {[%clk 0:02:52]}  Qc7 {[%clk 0:02:41]} 18. Ra3 {[%clk 0:02:48]}  Qb8 {[%clk 0:02:41]} 19. Nc4 {[%clk 0:02:45]}  Ba8 {[%clk 0:02:38]} 20. b4 {[%clk 0:02:41]}  Ncxe4 {[%clk 0:02:37]} 21. Nxe4 {[%clk 0:02:41]}  Nxe4 {[%clk 0:02:36]} 22. Nxb6 {[%clk 0:02:40]}  Rc3 {[%clk 0:02:28]} 23. Rxc3 {[%clk 0:02:27]}  Nxc3 {[%clk 0:02:29]} 24. Qb3 {[%clk 0:02:27]}  Ne4 {[%clk 0:02:22]} 25. Nd7 {[%clk 0:02:24]}  Qb7 {[%clk 0:02:07]} 26. Nxf8 {[%clk 0:02:18]}  Bxf8 {[%clk 0:02:07]} 27. b5 {[%clk 0:02:12]}  Nf6 {[%clk 0:02:02]} 28. Qc4 {[%clk 0:02:05]}  axb5 {[%clk 0:01:56]} 29. Qxb5 {[%clk 0:02:06]}  Qc8 {[%clk 0:01:49]} 30. Bc4 {[%clk 0:01:57]}  Nh5 {[%clk 0:01:40]} 31. a5 {[%clk 0:01:54]}  f5 {[%clk 0:01:40]} 32. Be2 {[%clk 0:01:54]}  Nf6 {[%clk 0:01:39]} 33. Rc1 {[%clk 0:01:54]}  Qd8 {[%clk 0:01:35]} 34. a6 {[%clk 0:01:53]}  f4 {[%clk 0:01:32]} 35. Bb6 {[%clk 0:01:52]}  Qe7 {[%clk 0:01:30]} 36. Rc7 {[%clk 0:01:52]}  Qe8 {[%clk 0:01:22]} 37. Qxe8 {[%clk 0:01:50]}  Nxe8 {[%clk 0:01:18]} 38. Rc8 {[%clk 0:01:51]} 1-0


[Site "https://www.chess.com"]

[Event "Titled Tuesday Blitz August 15 Late 2023"]
[White "Grigoriants, Sergey"]
[Black "Gasparyan, David"]
[WhiteFideId "4130804"]
[BlackFideId "13311980"]
[WhiteElo "2970"]
[BlackElo "2566"]
[Result "1-0"]
[Round "2"]
[TimeControl "180+1"]
[Date "2023.08.15"]
[WhiteClock "0:00:12"]
[BlackClock "0:00:46"]
[Board "21"]

1. d4 {[%clk 0:02:54]}  Nf6 {[%clk 0:02:59]} 2. c4 {[%clk 0:02:53]}  e6 {[%clk 0:02:57]} 3. g3 {[%clk 0:02:51]}  d5 {[%clk 0:02:57]} 4. Bg2 {[%clk 0:02:51]}  Be7 {[%clk 0:02:54]} 5. Nf3 {[%clk 0:02:51]}  O-O {[%clk 0:02:54]} 6. Qc2 {[%clk 0:02:51]}  Nc6 {[%clk 0:02:48]} 7. O-O {[%clk 0:02:50]}  Nb4 {[%clk 0:02:48]} 8. Qb3 {[%clk 0:02:47]}  dxc4 {[%clk 0:02:43]} 9. Qxc4 {[%clk 0:02:47]}  Bd7 {[%clk 0:02:42]} 10. a3 {[%clk 0:02:44]}  Nbd5 {[%clk 0:02:42]} 11. Ne5 {[%clk 0:02:38]}  Rc8 {[%clk 0:02:39]} 12. b4 {[%clk 0:02:34]}  a5 {[%clk 0:02:30]} 13. Bd2 {[%clk 0:02:15]}  Qe8 {[%clk 0:02:26]} 14. Nxd7 {[%clk 0:01:50]}  Qxd7 {[%clk 0:02:24]} 15. bxa5 {[%clk 0:01:23]}  c5 {[%clk 0:02:24]} 16. e4 {[%clk 0:01:00]}  cxd4 {[%clk 0:02:00]} 17. Qxd4 {[%clk 0:01:00]}  Nf4 {[%clk 0:01:56]} 18. Qxd7 {[%clk 0:00:55]}  Ne2+ {[%clk 0:01:57]} 19. Kh1 {[%clk 0:00:55]}  Nxd7 {[%clk 0:01:58]} 20. Bb4 {[%clk 0:00:45]}  Bf6 {[%clk 0:01:56]} 21. Ra2 {[%clk 0:00:43]}  Nc1 {[%clk 0:01:56]} 22. Rd2 {[%clk 0:00:40]}  Ne5 {[%clk 0:01:47]} 23. Bxf8 {[%clk 0:00:39]}  Kxf8 {[%clk 0:01:44]} 24. f4 {[%clk 0:00:36]}  Ng4 {[%clk 0:01:38]} 25. e5 {[%clk 0:00:34]}  Be7 {[%clk 0:01:38]} 26. Bxb7 {[%clk 0:00:33]}  Ne3 {[%clk 0:01:17]} 27. Bxc8 {[%clk 0:00:27]}  Nxf1 {[%clk 0:01:16]} 28. Rd1 {[%clk 0:00:26]}  Nd2 {[%clk 0:01:11]} 29. Rxd2 {[%clk 0:00:24]}  Nb3 {[%clk 0:01:11]} 30. Rd1 {[%clk 0:00:20]}  Nxa5 {[%clk 0:01:11]} 31. a4 {[%clk 0:00:18]}  Bc5 {[%clk 0:01:10]} 32. Nd2 {[%clk 0:00:16]}  Ke7 {[%clk 0:01:09]} 33. Ne4 {[%clk 0:00:17]}  Bb4 {[%clk 0:01:10]} 34. Rd7+ {[%clk 0:00:16]}  Kf8 {[%clk 0:01:09]} 35. Nd6 {[%clk 0:00:17]}  f6 {[%clk 0:01:07]} 36. Rf7+ {[%clk 0:00:16]}  Kg8 {[%clk 0:01:08]} 37. Bxe6 {[%clk 0:00:17]}  g5 {[%clk 0:01:05]} 38. Rxf6+ {[%clk 0:00:16]}  Kg7 {[%clk 0:01:05]} 39. Nf5+ {[%clk 0:00:17]}  Kh8 {[%clk 0:01:03]} 40. fxg5 {[%clk 0:00:17]}  Nc6 {[%clk 0:01:03]} 41. g6 {[%clk 0:00:17]}  hxg6 {[%clk 0:01:01]} 42. Rxg6 {[%clk 0:00:17]}  Bd2 {[%clk 0:00:59]} 43. Rg4 {[%clk 0:00:13]}  Kh7 {[%clk 0:00:46]} 44. Bf7 {[%clk 0:00:12]} 1-0


[Site "https://www.chess.com"]

[Event "Titled Tuesday Blitz August 15 Late 2023"]
[White "Svane, Rasmus"]
[Black "Schekachikhin, Maksim"]
[WhiteFideId "4657101"]
[BlackFideId "24177830"]
[WhiteElo "2959"]
[BlackElo "2565"]
[Result "1-0"]
[Round "2"]
[TimeControl "180+1"]
[Date "2023.08.15"]
[WhiteClock "0:00:23"]
[BlackClock "0:00:09"]
[Board "23"]

1. Nf3 {[%clk 0:03:00]}  c5 {[%clk 0:02:58]} 2. c4 {[%clk 0:03:00]}  b6 {[%clk 0:02:57]} 3. g3 {[%clk 0:03:00]}  Bb7 {[%clk 0:02:58]} 4. Bg2 {[%clk 0:03:01]}  Nf6 {[%clk 0:02:58]} 5. O-O {[%clk 0:03:01]}  e6 {[%clk 0:02:59]} 6. Nc3 {[%clk 0:03:01]}  Be7 {[%clk 0:02:58]} 7. d4 {[%clk 0:03:01]}  cxd4 {[%clk 0:02:59]} 8. Qxd4 {[%clk 0:03:02]}  d6 {[%clk 0:02:59]} 9. Bg5 {[%clk 0:03:01]}  a6 {[%clk 0:02:58]} 10. Bxf6 {[%clk 0:03:01]}  Bxf6 {[%clk 0:02:59]} 11. Qf4 {[%clk 0:03:02]}  Bxf3 {[%clk 0:02:59]} 12. Bxf3 {[%clk 0:02:58]}  Ra7 {[%clk 0:02:59]} 13. Rfd1 {[%clk 0:02:57]}  Rd7 {[%clk 0:02:55]} 14. Rd2 {[%clk 0:02:51]}  O-O {[%clk 0:02:55]} 15. Rad1 {[%clk 0:02:47]}  Be5 {[%clk 0:02:33]} 16. Qe3 {[%clk 0:02:44]}  Bxc3 {[%clk 0:02:31]} 17. Qxc3 {[%clk 0:02:42]}  Qc7 {[%clk 0:02:31]} 18. Qb4 {[%clk 0:02:34]}  Rfd8 {[%clk 0:02:30]} 19. b3 {[%clk 0:02:35]}  g6 {[%clk 0:02:30]} 20. h4 {[%clk 0:02:34]}  h5 {[%clk 0:02:29]} 21. Rd3 {[%clk 0:02:31]}  Qc5 {[%clk 0:02:26]} 22. Qd2 {[%clk 0:02:26]}  Nc6 {[%clk 0:02:25]} 23. Bxc6 {[%clk 0:02:21]}  Qxc6 {[%clk 0:02:25]} 24. Qf4 {[%clk 0:02:16]}  Qc5 {[%clk 0:02:21]} 25. a4 {[%clk 0:02:12]}  Kg7 {[%clk 0:02:19]} 26. e4 {[%clk 0:02:08]}  b5 {[%clk 0:02:10]} 27. cxb5 {[%clk 0:01:35]}  axb5 {[%clk 0:02:11]} 28. axb5 {[%clk 0:01:27]}  Qxb5 {[%clk 0:02:11]} 29. Qe3 {[%clk 0:01:27]}  Qb4 {[%clk 0:02:00]} 30. Kg2 {[%clk 0:01:27]}  Rc8 {[%clk 0:01:52]} 31. Rd4 {[%clk 0:01:24]}  Qb6 {[%clk 0:01:40]} 32. e5 {[%clk 0:01:16]}  d5 {[%clk 0:01:34]} 33. Qf3 {[%clk 0:01:16]}  Qd8 {[%clk 0:01:30]} 34. Rh1 {[%clk 0:00:58]}  Rdc7 {[%clk 0:01:16]} 35. g4 {[%clk 0:00:48]}  Rc3 {[%clk 0:01:15]} 36. Qf4 {[%clk 0:00:48]}  hxg4 {[%clk 0:01:05]} 37. h5 {[%clk 0:00:48]}  Rh3 {[%clk 0:00:55]} 38. h6+ {[%clk 0:00:46]}  Kg8 {[%clk 0:00:53]} 39. Rxh3 {[%clk 0:00:31]}  gxh3+ {[%clk 0:00:52]} 40. Kxh3 {[%clk 0:00:32]}  Rc3+ {[%clk 0:00:48]} 41. Kg2 {[%clk 0:00:32]}  Rxb3 {[%clk 0:00:43]} 42. Ra4 {[%clk 0:00:32]}  Rb7 {[%clk 0:00:40]} 43. h7+ {[%clk 0:00:23]}  Kxh7 {[%clk 0:00:21]} 44. Ra3 {[%clk 0:00:24]}  Kg8 {[%clk 0:00:13]} 45. Rh3 {[%clk 0:00:23]}  Qf8 {[%clk 0:00:12]} 46. Qf6 {[%clk 0:00:23]}  Qg7 {[%clk 0:00:09]} 47. Qd8+ {[%clk 0:00:23]} 1-0


[Site "https://www.chess.com"]

[Event "Titled Tuesday Blitz August 15 Late 2023"]
[White "Paszewski, Mateusz"]
[Black "Keymer, Vincent"]
[WhiteFideId "1141058"]
[BlackFideId "12940690"]
[WhiteElo "2561"]
[BlackElo "2937"]
[Result "0-1"]
[Round "2"]
[TimeControl "180+1"]
[Date "2023.08.15"]
[WhiteClock "0:00:04"]
[BlackClock "0:00:46"]
[Board "25"]

1. Nf3 {[%clk 0:03:00]}  d5 {[%clk 0:02:53]} 2. g3 {[%clk 0:02:51]}  Bg4 {[%clk 0:02:53]} 3. Bg2 {[%clk 0:02:50]}  c6 {[%clk 0:02:53]} 4. Ne5 {[%clk 0:02:45]}  Bh5 {[%clk 0:02:53]} 5. c4 {[%clk 0:02:45]}  e6 {[%clk 0:02:52]} 6. O-O {[%clk 0:02:43]}  Nd7 {[%clk 0:02:48]} 7. Nxd7 {[%clk 0:02:31]}  Qxd7 {[%clk 0:02:49]} 8. cxd5 {[%clk 0:02:11]}  exd5 {[%clk 0:02:43]} 9. d3 {[%clk 0:02:11]}  Nf6 {[%clk 0:02:42]} 10. Nc3 {[%clk 0:02:10]}  Bc5 {[%clk 0:02:38]} 11. Qc2 {[%clk 0:02:08]}  Bb6 {[%clk 0:02:35]} 12. Bg5 {[%clk 0:02:02]}  Qf5 {[%clk 0:02:25]} 13. Bd2 {[%clk 0:01:31]}  O-O {[%clk 0:02:06]} 14. e4 {[%clk 0:01:27]}  dxe4 {[%clk 0:02:07]} 15. dxe4 {[%clk 0:01:28]}  Qe6 {[%clk 0:02:07]} 16. h3 {[%clk 0:01:22]}  Rad8 {[%clk 0:02:05]} 17. Na4 {[%clk 0:01:12]}  Bd4 {[%clk 0:01:57]} 18. Bc3 {[%clk 0:01:00]}  Rfe8 {[%clk 0:01:40]} 19. Bxd4 {[%clk 0:00:56]}  Rxd4 {[%clk 0:01:40]} 20. Nc3 {[%clk 0:00:56]}  Red8 {[%clk 0:01:34]} 21. g4 {[%clk 0:00:40]}  Bg6 {[%clk 0:01:34]} 22. Rad1 {[%clk 0:00:33]}  h5 {[%clk 0:01:34]} 23. g5 {[%clk 0:00:26]}  Nxe4 {[%clk 0:01:21]} 24. Nxe4 {[%clk 0:00:20]}  Rxd1 {[%clk 0:01:17]} 25. Rxd1 {[%clk 0:00:19]}  Rxd1+ {[%clk 0:01:17]} 26. Qxd1 {[%clk 0:00:20]}  Bxe4 {[%clk 0:01:18]} 27. Bxe4 {[%clk 0:00:21]}  Qxe4 {[%clk 0:01:19]} 28. Qd8+ {[%clk 0:00:20]}  Kh7 {[%clk 0:01:18]} 29. Qd7 {[%clk 0:00:20]}  Qd5 {[%clk 0:01:12]} 30. Qe7 {[%clk 0:00:17]}  a5 {[%clk 0:01:08]} 31. a3 {[%clk 0:00:15]}  b5 {[%clk 0:01:05]} 32. h4 {[%clk 0:00:16]}  a4 {[%clk 0:01:03]} 33. Qe2 {[%clk 0:00:09]}  g6 {[%clk 0:00:56]} 34. Kh2 {[%clk 0:00:05]}  Qd4 {[%clk 0:00:53]} 35. Kg3 {[%clk 0:00:04]}  Kg7 {[%clk 0:00:50]} 36. Qc2 {[%clk 0:00:02]}  Qg4+ {[%clk 0:00:50]} 37. Kh2 {[%clk 0:00:03]}  Qxh4+ {[%clk 0:00:50]} 38. Kg1 {[%clk 0:00:04]}  Qxg5+ {[%clk 0:00:51]} 39. Kf1 {[%clk 0:00:04]}  Qd5 {[%clk 0:00:51]} 40. Qc3+ {[%clk 0:00:04]}  Kh7 {[%clk 0:00:51]} 41. Qf6 {[%clk 0:00:04]}  Qe6 {[%clk 0:00:49]} 42. Qd8 {[%clk 0:00:04]}  Qc4+ {[%clk 0:00:46]} 43. Kg2 {[%clk 0:00:04]}  Qd5+ {[%clk 0:00:46]} 44. Kg1 {[%clk 0:00:04]}  Qxd8 {[%clk 0:00:46]} 0-1


[Site "https://www.chess.com"]

[Event "Titled Tuesday Blitz August 15 Late 2023"]
[White "Chor, Kevin"]
[Black "Kamsky, Gata"]
[WhiteFideId "2090740"]
[BlackFideId "2000024"]
[WhiteElo "2558"]
[BlackElo "2931"]
[Result "1-0"]
[Round "2"]
[TimeControl "180+1"]
[Date "2023.08.15"]
[WhiteClock "0:00:29"]
[BlackClock "0:00:00"]
[Board "27"]

1. e4 {[%clk 0:03:00]}  c5 {[%clk 0:02:52]} 2. Nf3 {[%clk 0:03:00]}  e6 {[%clk 0:02:52]} 3. d4 {[%clk 0:02:59]}  cxd4 {[%clk 0:02:51]} 4. Nxd4 {[%clk 0:02:59]}  a6 {[%clk 0:02:49]} 5. Nc3 {[%clk 0:02:59]}  b5 {[%clk 0:02:49]} 6. Bd3 {[%clk 0:02:58]}  Qb6 {[%clk 0:02:48]} 7. Be3 {[%clk 0:02:57]}  Bc5 {[%clk 0:02:47]} 8. Be2 {[%clk 0:02:55]}  Nc6 {[%clk 0:02:45]} 9. Nxc6 {[%clk 0:02:56]}  Bxe3 {[%clk 0:02:30]} 10. fxe3 {[%clk 0:02:54]}  Qxc6 {[%clk 0:02:29]} 11. Qd4 {[%clk 0:02:45]}  f6 {[%clk 0:02:28]} 12. e5 {[%clk 0:02:34]}  Qc7 {[%clk 0:00:41]} 13. Bh5+ {[%clk 0:01:57]}  Kd8 {[%clk 0:00:31]} 14. Bf3 {[%clk 0:01:47]}  Rb8 {[%clk 0:00:28]} 15. Qg4 {[%clk 0:01:32]}  g6 {[%clk 0:00:22]} 16. exf6 {[%clk 0:01:31]}  Qe5 {[%clk 0:00:15]} 17. f7 {[%clk 0:01:22]}  Nf6 {[%clk 0:00:14]} 18. Qh4 {[%clk 0:01:16]}  Ke7 {[%clk 0:00:12]} 19. O-O {[%clk 0:01:06]}  h6 {[%clk 0:00:08]} 20. Rae1 {[%clk 0:00:56]}  g5 {[%clk 0:00:07]} 21. Qb4+ {[%clk 0:00:55]}  d6 {[%clk 0:00:04]} 22. Ne4 {[%clk 0:00:45]}  Nxe4 {[%clk 0:00:04]} 23. Bxe4 {[%clk 0:00:46]}  Rf8 {[%clk 0:00:05]} 24. Bg6 {[%clk 0:00:42]}  Bb7 {[%clk 0:00:04]} 25. Rd1 {[%clk 0:00:39]}  Rbc8 {[%clk 0:00:00]} 26. Qd2 {[%clk 0:00:29]} 1-0


[Site "https://www.chess.com"]

[Event "Titled Tuesday Blitz August 15 Late 2023"]
[White "Dardha, Daniel"]
[Black "Deng, Henry"]
[WhiteFideId "240990"]
[BlackFideId "30965454"]
[WhiteElo "2925"]
[BlackElo "2557"]
[Result "1-0"]
[Round "2"]
[TimeControl "180+1"]
[Date "2023.08.15"]
[WhiteClock "0:00:14"]
[BlackClock "0:00:01"]
[Board "28"]

1. e4 {[%clk 0:03:00]}  c5 {[%clk 0:02:57]} 2. Nf3 {[%clk 0:02:59]}  e6 {[%clk 0:02:57]} 3. d4 {[%clk 0:03:00]}  cxd4 {[%clk 0:02:58]} 4. Nxd4 {[%clk 0:03:00]}  Nf6 {[%clk 0:02:59]} 5. Nc3 {[%clk 0:03:00]}  Nc6 {[%clk 0:02:59]} 6. Nxc6 {[%clk 0:03:01]}  bxc6 {[%clk 0:03:00]} 7. e5 {[%clk 0:03:01]}  Nd5 {[%clk 0:03:01]} 8. Ne4 {[%clk 0:03:02]}  Bb7 {[%clk 0:03:00]} 9. c4 {[%clk 0:03:02]}  Nb4 {[%clk 0:03:00]} 10. c5 {[%clk 0:03:02]}  Qb8 {[%clk 0:03:01]} 11. f4 {[%clk 0:03:03]}  Ba6 {[%clk 0:03:00]} 12. a3 {[%clk 0:03:03]}  Bxf1 {[%clk 0:02:58]} 13. Rxf1 {[%clk 0:03:04]}  Nd5 {[%clk 0:02:57]} 14. Rf3 {[%clk 0:03:03]}  Be7 {[%clk 0:02:50]} 15. Rb3 {[%clk 0:02:59]}  Qc8 {[%clk 0:02:46]} 16. Qd4 {[%clk 0:02:59]}  Qa6 {[%clk 0:02:43]} 17. Bd2 {[%clk 0:02:58]}  O-O {[%clk 0:02:41]} 18. O-O-O {[%clk 0:02:56]}  Rab8 {[%clk 0:02:39]} 19. Rg3 {[%clk 0:02:53]}  Kh8 {[%clk 0:02:37]} 20. Rh3 {[%clk 0:02:47]}  Rb7 {[%clk 0:02:22]} 21. Kb1 {[%clk 0:02:32]}  Rfb8 {[%clk 0:02:19]} 22. Bc1 {[%clk 0:02:32]}  Rb3 {[%clk 0:02:19]} 23. Rxb3 {[%clk 0:02:24]}  Rxb3 {[%clk 0:02:20]} 24. Kc2 {[%clk 0:02:24]}  Rb8 {[%clk 0:02:17]} 25. Rd3 {[%clk 0:02:20]}  Qb5 {[%clk 0:02:01]} 26. b3 {[%clk 0:02:15]}  Kg8 {[%clk 0:01:47]} 27. Bb2 {[%clk 0:02:10]}  a5 {[%clk 0:01:44]} 28. Nd6 {[%clk 0:02:03]}  Bxd6 {[%clk 0:01:40]} 29. exd6 {[%clk 0:02:04]}  f6 {[%clk 0:01:39]} 30. g4 {[%clk 0:02:05]}  a4 {[%clk 0:01:22]} 31. b4 {[%clk 0:01:57]}  Re8 {[%clk 0:01:18]} 32. Qe4 {[%clk 0:01:56]}  Qb8 {[%clk 0:00:59]} 33. g5 {[%clk 0:01:48]}  e5 {[%clk 0:00:49]} 34. gxf6 {[%clk 0:01:38]}  Nxf6 {[%clk 0:00:48]} 35. Qc4+ {[%clk 0:01:38]}  Nd5 {[%clk 0:00:45]} 36. Bxe5 {[%clk 0:01:20]}  Qd8 {[%clk 0:00:41]} 37. Rxd5 {[%clk 0:01:20]}  cxd5 {[%clk 0:00:37]} 38. Qxd5+ {[%clk 0:01:21]}  Kh8 {[%clk 0:00:36]} 39. Qg2 {[%clk 0:01:14]}  Rg8 {[%clk 0:00:35]} 40. Qg5 {[%clk 0:01:03]}  Qe8 {[%clk 0:00:30]} 41. Qe7 {[%clk 0:00:47]}  Qg6+ {[%clk 0:00:30]} 42. Kc3 {[%clk 0:00:47]}  Qg4 {[%clk 0:00:25]} 43. b5 {[%clk 0:00:40]}  Qd1 {[%clk 0:00:14]} 44. Kb4 {[%clk 0:00:35]}  Qb3+ {[%clk 0:00:13]} 45. Ka5 {[%clk 0:00:35]}  Qxa3 {[%clk 0:00:13]} 46. Kb6 {[%clk 0:00:24]}  Qb4 {[%clk 0:00:12]} 47. f5 {[%clk 0:00:18]}  Rb8+ {[%clk 0:00:06]} 48. Kc7 {[%clk 0:00:16]}  Rg8 {[%clk 0:00:05]} 49. c6 {[%clk 0:00:15]}  Qa5+ {[%clk 0:00:05]} 50. Kxd7 {[%clk 0:00:15]}  Qa7+ {[%clk 0:00:02]} 51. Ke6 {[%clk 0:00:14]}  Qxe7+ {[%clk 0:00:03]} 52. Kxe7 {[%clk 0:00:13]}  a3 {[%clk 0:00:03]} 53. d7 {[%clk 0:00:14]}  a2 {[%clk 0:00:02]} 54. c7 {[%clk 0:00:14]}  a1=Q {[%clk 0:00:01]} 55. Bxa1 {[%clk 0:00:14]} 1-0


[Site "https://www.chess.com"]

[Event "Titled Tuesday Blitz August 15 Late 2023"]
[White "Postlmayer, Jakob"]
[Black "Rasulov, Vugar"]
[WhiteFideId "1643622"]
[BlackFideId "13402390"]
[WhiteElo "2553"]
[BlackElo "2888"]
[Result "0-1"]
[Round "2"]
[TimeControl "180+1"]
[Date "2023.08.15"]
[WhiteClock "0:00:26"]
[BlackClock "0:00:30"]
[Board "32"]

1. e4 {[%clk 0:03:00]}  c5 {[%clk 0:03:00]} 2. Nf3 {[%clk 0:03:01]}  d6 {[%clk 0:03:00]} 3. d4 {[%clk 0:03:00]}  cxd4 {[%clk 0:03:01]} 4. Nxd4 {[%clk 0:03:00]}  Nf6 {[%clk 0:03:02]} 5. f3 {[%clk 0:02:58]}  e5 {[%clk 0:03:01]} 6. Nb3 {[%clk 0:02:59]}  Be6 {[%clk 0:02:59]} 7. c4 {[%clk 0:02:58]}  Be7 {[%clk 0:02:58]} 8. Nc3 {[%clk 0:02:57]}  O-O {[%clk 0:02:59]} 9. Be3 {[%clk 0:02:57]}  a5 {[%clk 0:02:57]} 10. Be2 {[%clk 0:02:52]}  a4 {[%clk 0:02:54]} 11. Nd2 {[%clk 0:02:51]}  Qa5 {[%clk 0:02:54]} 12. Rb1 {[%clk 0:02:40]}  Bd8 {[%clk 0:02:52]} 13. O-O {[%clk 0:02:33]}  Nbd7 {[%clk 0:02:47]} 14. Qc2 {[%clk 0:02:22]}  Bb6 {[%clk 0:02:41]} 15. Bxb6 {[%clk 0:02:21]}  Qxb6+ {[%clk 0:02:36]} 16. Kh1 {[%clk 0:02:21]}  Nc5 {[%clk 0:02:36]} 17. Rfd1 {[%clk 0:02:18]}  Rfc8 {[%clk 0:02:35]} 18. Nf1 {[%clk 0:02:13]}  h6 {[%clk 0:02:27]} 19. Qd2 {[%clk 0:02:10]}  Rc6 {[%clk 0:02:01]} 20. Ne3 {[%clk 0:02:08]}  Qa5 {[%clk 0:01:59]} 21. b4 {[%clk 0:01:57]}  axb3 {[%clk 0:01:58]} 22. axb3 {[%clk 0:01:58]}  Qd8 {[%clk 0:01:32]} 23. Nb5 {[%clk 0:01:49]}  Ne8 {[%clk 0:01:27]} 24. b4 {[%clk 0:01:29]}  Nd7 {[%clk 0:01:27]} 25. Nd5 {[%clk 0:01:22]}  Rca6 {[%clk 0:01:19]} 26. Rb2 {[%clk 0:01:19]}  Ra1 {[%clk 0:01:19]} 27. Nbc3 {[%clk 0:01:08]}  Rxd1+ {[%clk 0:01:16]} 28. Qxd1 {[%clk 0:01:08]}  Nef6 {[%clk 0:01:05]} 29. Ne3 {[%clk 0:01:00]}  Qb6 {[%clk 0:00:56]} 30. Qd2 {[%clk 0:00:47]}  Ra1+ {[%clk 0:00:53]} 31. Rb1 {[%clk 0:00:47]}  Ra3 {[%clk 0:00:31]} 32. g3 {[%clk 0:00:26]}  Qd4 {[%clk 0:00:30]} 0-1


[Site "https://www.chess.com"]